[Event "*** Titled Tuesday Blitz"]
[Site "Chess.com"]
[Date "2021.04.20"]
[Round "5"]
[White "SmoothAsAHedgehog"]
[Black "Agnes66678"]
[Result "1-0"]
[WhiteElo "2671"]
[BlackElo "2453"]
[TimeControl "180+1"]
[EndTime "10:56:05 PDT"]
[Termination "SmoothAsAHedgehog won by resignation"]

1. e4 {[%clk 0:03:00.9]} 1... e6 {[%clk 0:02:59.8]} 2. d4 {[%clk 0:02:51.7]}
2... d5 {[%clk 0:02:59.7]} 3. Nd2 {[%clk 0:02:52.2]} 3... c5 {[%clk 0:02:59.6]}
4. exd5 {[%clk 0:02:50.6]} 4... Qxd5 {[%clk 0:02:58.7]} 5. Ngf3 {[%clk
0:02:50.5]} 5... cxd4 {[%clk 0:02:58.3]} 6. Bc4 {[%clk 0:02:50.6]} 6... Qd7
{[%clk 0:02:58.8]} 7. O-O {[%clk 0:02:50]} 7... Nc6 {[%clk 0:02:58]} 8. Nb3
{[%clk 0:02:43.8]} 8... Nf6 {[%clk 0:02:57.8]} 9. Nbxd4 {[%clk 0:02:39.3]} 9...
Nxd4 {[%clk 0:02:57.6]} 10. Nxd4 {[%clk 0:02:36.5]} 10... a6 {[%clk 0:02:57.5]}
11. a4 {[%clk 0:02:20.3]} 11... b6 {[%clk 0:02:47.1]} 12. c3 {[%clk 0:02:12.3]}
12... Bb7 {[%clk 0:02:45.9]} 13. Qe2 {[%clk 0:02:05]} 13... Bc5 {[%clk
0:02:38.3]} 14. Rd1 {[%clk 0:01:31.4]} 14... O-O {[%clk 0:02:30]} 15. Bg5 {[%clk
0:01:05.4]} 15... Qc7 {[%clk 0:02:08.5]} 16. Bb3 {[%clk 0:00:54]} 16... Rad8
{[%clk 0:02:04.1]} 17. Rd3 {[%clk 0:00:41.4]} 17... Be7 {[%clk 0:01:35.6]} 18.
Rad1 {[%clk 0:00:39.2]} 18... Nd5 {[%clk 0:01:25]} 19. Bc1 {[%clk 0:00:30.5]}
19... Kh8 {[%clk 0:01:15.7]} 20. Qg4 {[%clk 0:00:22.1]} 20... Bf6 {[%clk
0:01:08.5]} 21. Nf3 {[%clk 0:00:20.6]} 21... Ne7 {[%clk 0:01:01.7]} 22. Bf4
{[%clk 0:00:18.4]} 22... Qc8 {[%clk 0:00:49.4]} 23. h4 {[%clk 0:00:17.5]} 23...
Rxd3 {[%clk 0:00:46.7]} 24. Rxd3 {[%clk 0:00:18.4]} 24... Rd8 {[%clk 0:00:46.4]}
25. Rxd8+ {[%clk 0:00:15.8]} 25... Qxd8 {[%clk 0:00:47.3]} 26. Bg5 {[%clk
0:00:15.5]} 26... Nf5 {[%clk 0:00:40.6]} 27. Bxf6 {[%clk 0:00:08.1]} 27... Qxf6
{[%clk 0:00:41.5]} 28. Ng5 {[%clk 0:00:08.1]} 28... h6 {[%clk 0:00:38.9]} 29.
Nf3 {[%clk 0:00:05.9]} 29... Qd8 {[%clk 0:00:31.5]} 30. Qf4 {[%clk 0:00:03.7]}
30... Bxf3 {[%clk 0:00:23.4]} 31. Qxf3 {[%clk 0:00:04.6]} 31... a5 {[%clk
0:00:23.5]} 32. h5 {[%clk 0:00:03.7]} 32... Qg5 {[%clk 0:00:20.6]} 33. g3 {[%clk
0:00:02.5]} 33... Qc1+ {[%clk 0:00:20]} 34. Kg2 {[%clk 0:00:02.6]} 34... Qxb2
{[%clk 0:00:20.5]} 35. Bc4 {[%clk 0:00:02]} 35... Qa3 {[%clk 0:00:18.9]} 36. Bd3
{[%clk 0:00:02.5]} 36... Qxa4 {[%clk 0:00:18.1]} 37. Bxf5 {[%clk 0:00:01.9]}
37... exf5 {[%clk 0:00:19]} 38. Qxf5 {[%clk 0:00:02.3]} 38... Qc6+ {[%clk
0:00:19.4]} 39. Kg1 {[%clk 0:00:02.7]} 39... Qe6 {[%clk 0:00:19.4]} 40. Qf4
{[%clk 0:00:02.8]} 40... Kg8 {[%clk 0:00:18.5]} 41. Qb8+ {[%clk 0:00:03.3]}
41... Kh7 {[%clk 0:00:18.7]} 42. Qa7 {[%clk 0:00:03.3]} 42... Qc6 {[%clk
0:00:17.6]} 43. c4 {[%clk 0:00:03.1]} 43... Qxc4 {[%clk 0:00:16.7]} 44. Qxb6
{[%clk 0:00:03.5]} 44... a4 {[%clk 0:00:16.9]} 45. Qb1+ {[%clk 0:00:03.7]} 45...
g6 {[%clk 0:00:16.1]} 46. hxg6+ {[%clk 0:00:04.6]} 46... fxg6 {[%clk 0:00:16.4]}
47. Qb7+ {[%clk 0:00:05.2]} 47... Kg8 {[%clk 0:00:16.2]} 48. Qb8+ {[%clk
0:00:05.1]} 48... Kg7 {[%clk 0:00:16.3]} 49. Qa7+ {[%clk 0:00:05.4]} 49... Kf6
{[%clk 0:00:15.8]} 50. Qb6+ {[%clk 0:00:05.7]} 50... Ke5 {[%clk 0:00:15.9]} 51.
Qe3+ {[%clk 0:00:04.2]} 51... Kf6 {[%clk 0:00:12.9]} 52. Qxh6 {[%clk 0:00:04.1]}
52... a3 {[%clk 0:00:11.5]} 53. Qf8+ {[%clk 0:00:04.1]} 53... Qf7 {[%clk
0:00:11.2]} 54. Qxa3 {[%clk 0:00:04.6]} 54... Qc4 {[%clk 0:00:11.9]} 55. Qf3+
{[%clk 0:00:04.3]} 55... Kg5 {[%clk 0:00:11.9]} 56. Kg2 {[%clk 0:00:04.9]} 56...
Qa4 {[%clk 0:00:10.2]} 57. Qe3+ {[%clk 0:00:04.7]} 57... Kf6 {[%clk 0:00:10]}
58. Qf4+ {[%clk 0:00:04.3]} 58... Qxf4 {[%clk 0:00:09.7]} 59. gxf4 {[%clk
0:00:05.2]} 59... Kf5 {[%clk 0:00:10.4]} 60. Kf3 {[%clk 0:00:04.8]} 60... g5
{[%clk 0:00:10.8]} 61. fxg5 {[%clk 0:00:05.2]} 61... Kxg5 {[%clk 0:00:11.7]} 62.
Ke4 {[%clk 0:00:05.8]} 62... Kf6 {[%clk 0:00:12]} 63. Kf4 {[%clk 0:00:06.1]}
63... Kg6 {[%clk 0:00:12.2]} 64. Ke5 {[%clk 0:00:06.4]} 64... Kf7 {[%clk
0:00:12.3]} 65. Kf5 {[%clk 0:00:06.7]} 65... Kf8 {[%clk 0:00:11.7]} 66. Kf6
{[%clk 0:00:06.6]} 66... Ke8 {[%clk 0:00:11.7]} 67. f4 {[%clk 0:00:06.9]} 67...
Kf8 {[%clk 0:00:11.7]} 68. f5 {[%clk 0:00:07.3]} 68... Kg8 {[%clk 0:00:11.7]}
69. Ke7 {[%clk 0:00:07.6]} 1-0

[Event "*** Titled Tuesday Blitz"]
[Site "Chess.com"]
[Date "2021.04.20"]
[Round "5"]
[White "kuba2006"]
[Black "esrosenberg"]
[Result "0-1"]
[WhiteElo "2326"]
[BlackElo "2208"]
[TimeControl "180+1"]
[EndTime "10:56:09 PDT"]
[Termination "esrosenberg won by checkmate"]

1. b3 {[%clk 0:02:59.9]} 1... e5 {[%clk 0:02:59.8]} 2. Bb2 {[%clk 0:03:00.8]}
2... Nc6 {[%clk 0:03:00.3]} 3. e3 {[%clk 0:03:00.2]} 3... d5 {[%clk 0:03:00.6]}
4. Bb5 {[%clk 0:02:59.8]} 4... Bd6 {[%clk 0:03:01]} 5. Nf3 {[%clk 0:02:58.9]}
5... Qe7 {[%clk 0:02:46.6]} 6. O-O {[%clk 0:02:58.1]} 6... Bg4 {[%clk
0:02:44.6]} 7. h3 {[%clk 0:02:55.6]} 7... Bh5 {[%clk 0:02:43.9]} 8. c4 {[%clk
0:02:18]} 8... dxc4 {[%clk 0:02:13.3]} 9. bxc4 {[%clk 0:02:16.8]} 9... Nf6
{[%clk 0:02:09.6]} 10. Bxc6+ {[%clk 0:02:08.7]} 10... bxc6 {[%clk 0:02:09.5]}
11. d3 {[%clk 0:02:09.1]} 11... Rb8 {[%clk 0:02:07.7]} 12. Bc3 {[%clk
0:02:02.3]} 12... e4 {[%clk 0:01:49.8]} 13. dxe4 {[%clk 0:01:58]} 13... Nxe4
{[%clk 0:01:47]} 14. g4 {[%clk 0:01:36]} 14... Bg6 {[%clk 0:01:31.5]} 15. Bxg7
{[%clk 0:01:34.8]} 15... Rg8 {[%clk 0:01:31.5]} 16. Bh6 {[%clk 0:01:34.6]} 16...
Qf6 {[%clk 0:00:40]} 17. Qa4 {[%clk 0:00:29]} 17... Qxf3 {[%clk 0:00:27.4]} 18.
Qxc6+ {[%clk 0:00:27.9]} 18... Kd8 {[%clk 0:00:28]} 19. Nc3 {[%clk 0:00:09.7]}
19... Qxh3 {[%clk 0:00:25.1]} 20. Bf4 {[%clk 0:00:05.5]} 20... Qxg4+ {[%clk
0:00:21.8]} 21. Kh2 {[%clk 0:00:05.4]} 21... Bxf4+ {[%clk 0:00:20.6]} 22. exf4
{[%clk 0:00:05.2]} 22... Qxf4+ {[%clk 0:00:21.2]} 23. Kh1 {[%clk 0:00:04.6]}
23... Qf3+ {[%clk 0:00:20.6]} 24. Kh2 {[%clk 0:00:04.7]} 24... Qxc3 {[%clk
0:00:18.7]} 25. Rfd1+ {[%clk 0:00:03.6]} 25... Ke7 {[%clk 0:00:18.3]} 26. Qxc7+
{[%clk 0:00:03.3]} 26... Kf6 {[%clk 0:00:18.3]} 27. Qc6+ {[%clk 0:00:03.1]}
27... Kg7 {[%clk 0:00:17.5]} 28. Rac1 {[%clk 0:00:02.1]} 28... Qe5+ {[%clk
0:00:17.2]} 29. Kg2 {[%clk 0:00:01.7]} 29... Qg5+ {[%clk 0:00:16.5]} 30. Kf1
{[%clk 0:00:01.8]} 30... Nf6 {[%clk 0:00:15.8]} 31. Qd6 {[%clk 0:00:01.6]} 31...
Bh5 {[%clk 0:00:15.4]} 32. Qd4 {[%clk 0:00:01.2]} 32... Bxd1 {[%clk 0:00:15.2]}
33. Rxd1 {[%clk 0:00:02.1]} 33... Rb2 {[%clk 0:00:14.3]} 34. Re1 {[%clk
0:00:02.2]} 34... Rd2 {[%clk 0:00:14.1]} 35. Qe5 {[%clk 0:00:01.9]} 35... Qxe5
{[%clk 0:00:13.7]} 36. Rxe5 {[%clk 0:00:02.8]} 36... Rc8 {[%clk 0:00:13.8]} 37.
c5 {[%clk 0:00:03.2]} 37... Rc2 {[%clk 0:00:13.6]} 38. Rg5+ {[%clk 0:00:03.7]}
38... Kh6 {[%clk 0:00:13.6]} 39. Rf5 {[%clk 0:00:04.6]} 39... Kg6 {[%clk
0:00:13.8]} 40. Rf4 {[%clk 0:00:05]} 40... R2xc5 {[%clk 0:00:14]} 41. Ra4 {[%clk
0:00:05]} 41... Rc1+ {[%clk 0:00:13.9]} 42. Kg2 {[%clk 0:00:05.2]} 42... R8c7
{[%clk 0:00:14.3]} 43. Ra6 {[%clk 0:00:05.3]} 43... R1c6 {[%clk 0:00:13.4]} 44.
Ra5 {[%clk 0:00:05.7]} 44... a6 {[%clk 0:00:13.7]} 45. Kg3 {[%clk 0:00:04.8]}
45... Ne4+ {[%clk 0:00:13.7]} 46. Kf3 {[%clk 0:00:04.5]} 46... Nd2+ {[%clk
0:00:13.7]} 47. Kg4 {[%clk 0:00:04.7]} 47... Nc4 {[%clk 0:00:13.8]} 48. Ra4
{[%clk 0:00:04.1]} 48... f5+ {[%clk 0:00:13.5]} 49. Kg3 {[%clk 0:00:03.8]} 49...
Ne5 {[%clk 0:00:12.6]} 50. f4 {[%clk 0:00:03]} 50... Rc3+ {[%clk 0:00:12.5]} 51.
Kh4 {[%clk 0:00:03.3]} 51... Nf3+ {[%clk 0:00:11.8]} 52. Kg3 {[%clk 0:00:03.5]}
52... Nd4+ {[%clk 0:00:11.3]} 53. Kh4 {[%clk 0:00:03.8]} 53... Ne6 {[%clk
0:00:11.6]} 54. Rxa6 {[%clk 0:00:02.9]} 54... R7c6 {[%clk 0:00:12.1]} 55. Ra7
{[%clk 0:00:02.6]} 55... Nxf4 {[%clk 0:00:11.7]} 56. Rg7+ {[%clk 0:00:01.5]}
56... Kxg7 {[%clk 0:00:11.7]} 57. Kg5 {[%clk 0:00:01.4]} 57... Ne6+ {[%clk
0:00:11.9]} 58. Kxf5 {[%clk 0:00:01.7]} 58... Nc7 {[%clk 0:00:12.2]} 59. Ke5
{[%clk 0:00:01.9]} 59... R3c5+ {[%clk 0:00:12.3]} 60. Kd4 {[%clk 0:00:02.2]}
60... h5 {[%clk 0:00:12.5]} 61. a4 {[%clk 0:00:01.9]} 61... h4 {[%clk
0:00:13.1]} 62. a5 {[%clk 0:00:02.4]} 62... h3 {[%clk 0:00:13.5]} 63. a6 {[%clk
0:00:03]} 63... Nxa6 {[%clk 0:00:14.1]} 64. Ke3 {[%clk 0:00:02.6]} 64... Rf5
{[%clk 0:00:14.2]} 65. Kd4 {[%clk 0:00:03]} 65... Rcf6 {[%clk 0:00:13.6]} 66.
Ke3 {[%clk 0:00:03.2]} 66... h2 {[%clk 0:00:14.5]} 67. Ke4 {[%clk 0:00:03.5]}
67... h1=Q+ {[%clk 0:00:14.3]} 68. Ke3 {[%clk 0:00:04.4]} 68... Qh3+ {[%clk
0:00:14.1]} 69. Kd4 {[%clk 0:00:04.5]} 69... Qg4+ {[%clk 0:00:14.4]} 70. Ke3
{[%clk 0:00:04.6]} 70... Rf3+ {[%clk 0:00:14.9]} 71. Ke2 {[%clk 0:00:04.9]}
71... Qg2+ {[%clk 0:00:15.4]} 72. Ke1 {[%clk 0:00:05.3]} 72... Rf1# {[%clk
0:00:16.3]} 0-1

[Event "*** Titled Tuesday Blitz"]
[Site "Chess.com"]
[Date "2021.04.20"]
[Round "5"]
[White "RzayevB"]
[Black "Semen_Khanin"]
[Result "1-0"]
[WhiteElo "2601"]
[BlackElo "2735"]
[TimeControl "180+1"]
[EndTime "10:56:16 PDT"]
[Termination "RzayevB won by resignation"]

1. e4 {[%clk 0:03:00.9]} 1... c6 {[%clk 0:03:00.5]} 2. Nc3 {[%clk 0:02:58.8]}
2... d5 {[%clk 0:03:00.1]} 3. Nf3 {[%clk 0:02:59.2]} 3... dxe4 {[%clk
0:02:59.1]} 4. Nxe4 {[%clk 0:02:58.5]} 4... Nf6 {[%clk 0:02:59.6]} 5. Qe2 {[%clk
0:02:58.6]} 5... Nxe4 {[%clk 0:02:59.2]} 6. Qxe4 {[%clk 0:02:59.5]} 6... Qd5
{[%clk 0:02:59.2]} 7. Qf4 {[%clk 0:02:57]} 7... Qf5 {[%clk 0:02:55.9]} 8. Qe3
{[%clk 0:02:57.2]} 8... g6 {[%clk 0:02:39]} 9. Qd4 {[%clk 0:02:49]} 9... Qf6
{[%clk 0:02:37.4]} 10. Qxf6 {[%clk 0:02:48.1]} 10... exf6 {[%clk 0:02:37.5]} 11.
d4 {[%clk 0:02:47.4]} 11... Bd6 {[%clk 0:02:32.4]} 12. Bd3 {[%clk 0:02:46.4]}
12... O-O {[%clk 0:02:32.2]} 13. Be3 {[%clk 0:02:39.9]} 13... Re8 {[%clk
0:02:27.1]} 14. Kd2 {[%clk 0:02:39.4]} 14... Bg4 {[%clk 0:02:25.9]} 15. Ne1
{[%clk 0:02:28.5]} 15... Nd7 {[%clk 0:02:25.9]} 16. h3 {[%clk 0:02:25.5]} 16...
Be6 {[%clk 0:02:25.7]} 17. c4 {[%clk 0:02:21.1]} 17... b5 {[%clk 0:02:21.5]} 18.
c5 {[%clk 0:02:15.6]} 18... Bc7 {[%clk 0:02:20.6]} 19. Nc2 {[%clk 0:02:15.2]}
19... a5 {[%clk 0:02:19.2]} 20. Rhe1 {[%clk 0:02:11]} 20... Bd5 {[%clk
0:02:18.4]} 21. f3 {[%clk 0:02:10.5]} 21... f5 {[%clk 0:02:16]} 22. Re2 {[%clk
0:02:02.4]} 22... Bg3 {[%clk 0:02:13.6]} 23. a3 {[%clk 0:01:55.2]} 23... Re6
{[%clk 0:02:11.9]} 24. Bf2 {[%clk 0:01:51.8]} 24... Bf4+ {[%clk 0:02:08.4]} 25.
Be3 {[%clk 0:01:51.1]} 25... Bg3 {[%clk 0:02:08.2]} 26. Bf2 {[%clk 0:01:51.4]}
26... Bxf2 {[%clk 0:02:08.6]} 27. Rxf2 {[%clk 0:01:51.4]} 27... Rae8 {[%clk
0:02:08.4]} 28. Re2 {[%clk 0:01:48.4]} 28... Rxe2+ {[%clk 0:02:06.3]} 29. Bxe2
{[%clk 0:01:48.4]} 29... f4 {[%clk 0:02:06.8]} 30. Bd3 {[%clk 0:01:38.3]} 30...
Nf8 {[%clk 0:02:03]} 31. Re1 {[%clk 0:01:35.5]} 31... Ne6 {[%clk 0:02:02.9]} 32.
Re5 {[%clk 0:01:30.4]} 32... Rd8 {[%clk 0:01:58.5]} 33. Kc3 {[%clk 0:01:23.3]}
33... Kg7 {[%clk 0:01:56.4]} 34. Re2 {[%clk 0:01:05.8]} 34... f5 {[%clk
0:01:52.3]} 35. Rd2 {[%clk 0:00:53.9]} 35... Kf6 {[%clk 0:01:52.2]} 36. Be2
{[%clk 0:00:52.7]} 36... g5 {[%clk 0:01:48.3]} 37. Ne1 {[%clk 0:00:51.4]} 37...
h5 {[%clk 0:01:46.9]} 38. Nd3 {[%clk 0:00:50.2]} 38... Bc4 {[%clk 0:01:42.6]}
39. Nc1 {[%clk 0:00:42.9]} 39... Bxe2 {[%clk 0:01:39.3]} 40. Nxe2 {[%clk
0:00:43]} 40... Nc7 {[%clk 0:01:39.7]} 41. Nc1 {[%clk 0:00:37.4]} 41... Nd5+
{[%clk 0:01:38.5]} 42. Kc2 {[%clk 0:00:38]} 42... Re8 {[%clk 0:01:38]} 43. Nd3
{[%clk 0:00:35.8]} 43... Ne3+ {[%clk 0:01:26.4]} 44. Kc3 {[%clk 0:00:33.5]}
44... Nc4 {[%clk 0:01:25.8]} 45. Rf2 {[%clk 0:00:22.9]} 45... Re3 {[%clk
0:01:25.7]} 46. Kc2 {[%clk 0:00:22.2]} 46... Ke6 {[%clk 0:01:23.1]} 47. h4
{[%clk 0:00:16.6]} 47... Kf6 {[%clk 0:01:22.2]} 48. hxg5+ {[%clk 0:00:16.4]}
48... Kxg5 {[%clk 0:01:22.8]} 49. Kc3 {[%clk 0:00:17.1]} 49... Kh4 {[%clk
0:01:21.8]} 50. a4 {[%clk 0:00:17.1]} 50... Kg3 {[%clk 0:01:21.8]} 51. Rc2
{[%clk 0:00:17.3]} 51... Re8 {[%clk 0:00:42.4]} 52. axb5 {[%clk 0:00:16.6]}
52... cxb5 {[%clk 0:00:42.8]} 53. d5 {[%clk 0:00:17.1]} 53... Ne3 {[%clk
0:00:42.8]} 54. d6 {[%clk 0:00:15.7]} 54... b4+ {[%clk 0:00:42.7]} 55. Kd2
{[%clk 0:00:14.6]} 55... Nxc2 {[%clk 0:00:36.1]} 56. Kxc2 {[%clk 0:00:15.5]}
56... Kxg2 {[%clk 0:00:32]} 57. d7 {[%clk 0:00:15.3]} 57... Rd8 {[%clk
0:00:31.2]} 58. c6 {[%clk 0:00:15.6]} 58... b3+ {[%clk 0:00:25.2]} 59. Kxb3
{[%clk 0:00:15]} 59... h4 {[%clk 0:00:25.7]} 60. Nxf4+ {[%clk 0:00:14.1]} 60...
Kxf3 {[%clk 0:00:24.5]} 61. Ne6 {[%clk 0:00:13.6]} 61... Rb8+ {[%clk 0:00:23.7]}
62. Ka3 {[%clk 0:00:13]} 62... h3 {[%clk 0:00:22.1]} 63. Ng5+ {[%clk 0:00:13.1]}
63... Kf4 {[%clk 0:00:13.6]} 64. Nxh3+ {[%clk 0:00:14]} 64... Ke5 {[%clk
0:00:14]} 65. c7 {[%clk 0:00:11.1]} 65... Rh8 {[%clk 0:00:13.7]} 66. d8=Q {[%clk
0:00:08.5]} 66... Rxh3+ {[%clk 0:00:13.8]} 67. b3 {[%clk 0:00:08.7]} 1-0

[Event "*** Titled Tuesday Blitz"]
[Site "Chess.com"]
[Date "2021.04.20"]
[Round "5"]
[White "PotapovaM"]
[Black "starplatinum2030"]
[Result "0-1"]
[WhiteElo "2495"]
[BlackElo "2289"]
[TimeControl "180+1"]
[EndTime "10:56:18 PDT"]
[Termination "starplatinum2030 won on time"]

1. d4 {[%clk 0:03:00.3]} 1... Nf6 {[%clk 0:02:59.8]} 2. c4 {[%clk 0:03:00.3]}
2... e6 {[%clk 0:03:00]} 3. g3 {[%clk 0:02:50.4]} 3... d5 {[%clk 0:02:59.6]} 4.
Nf3 {[%clk 0:02:50.1]} 4... Be7 {[%clk 0:02:59.5]} 5. Bg2 {[%clk 0:02:50.4]}
5... O-O {[%clk 0:03:00]} 6. O-O {[%clk 0:02:51.1]} 6... Nbd7 {[%clk 0:03:00.5]}
7. Nbd2 {[%clk 0:02:46.8]} 7... b6 {[%clk 0:03:00.2]} 8. e4 {[%clk 0:02:42.3]}
8... Nxe4 {[%clk 0:02:43]} 9. Nxe4 {[%clk 0:02:37]} 9... dxe4 {[%clk 0:02:42.8]}
10. Nd2 {[%clk 0:02:37.7]} 10... f5 {[%clk 0:02:39.3]} 11. f3 {[%clk 0:02:36.4]}
11... Nf6 {[%clk 0:02:36.3]} 12. fxe4 {[%clk 0:02:35]} 12... Qxd4+ {[%clk
0:02:35.7]} 13. Kh1 {[%clk 0:02:34.8]} 13... fxe4 {[%clk 0:02:35.1]} 14. Nxe4
{[%clk 0:02:28.8]} 14... Qxd1 {[%clk 0:02:29.1]} 15. Rxd1 {[%clk 0:02:27.5]}
15... Rb8 {[%clk 0:02:08.9]} 16. Bf4 {[%clk 0:02:26]} 16... Ba6 {[%clk
0:02:04.6]} 17. Ng5 {[%clk 0:02:21.2]} 17... Bxc4 {[%clk 0:02:01.8]} 18. b3
{[%clk 0:01:40]} 18... Bd5 {[%clk 0:01:53.2]} 19. Bxd5 {[%clk 0:01:39.3]} 19...
exd5 {[%clk 0:01:53.6]} 20. Ne6 {[%clk 0:01:40]} 20... Rf7 {[%clk 0:01:46.1]}
21. Ng5 {[%clk 0:01:36.8]} 21... Rff8 {[%clk 0:01:42.4]} 22. Ne6 {[%clk
0:01:37.3]} 22... Rfc8 {[%clk 0:01:40.5]} 23. Nxc7 {[%clk 0:01:34.8]} 23... Rb7
{[%clk 0:01:07.6]} 24. Rac1 {[%clk 0:01:31.3]} 24... d4 {[%clk 0:00:59.9]} 25.
Rxd4 {[%clk 0:01:19.2]} 25... Kf7 {[%clk 0:00:49.7]} 26. Kg2 {[%clk 0:01:17.2]}
26... Bc5 {[%clk 0:00:45]} 27. Rdd1 {[%clk 0:01:14.8]} 27... Rbxc7 {[%clk
0:00:36.2]} 28. Bxc7 {[%clk 0:01:14.4]} 28... Rxc7 {[%clk 0:00:35.9]} 29. Rd8
{[%clk 0:01:02]} 29... Re7 {[%clk 0:00:33.7]} 30. Kf3 {[%clk 0:00:56.8]} 30...
Re3+ {[%clk 0:00:31.7]} 31. Kf4 {[%clk 0:00:57]} 31... Re2 {[%clk 0:00:25.2]}
32. h4 {[%clk 0:00:36]} 32... Rxa2 {[%clk 0:00:19.3]} 33. h5 {[%clk 0:00:31.6]}
33... Rf2+ {[%clk 0:00:18]} 34. Ke5 {[%clk 0:00:26.9]} 34... Re2+ {[%clk
0:00:18.1]} 35. Kf4 {[%clk 0:00:25.3]} 35... Nxh5+ {[%clk 0:00:18.1]} 36. Kg4
{[%clk 0:00:24.3]} 36... Nf6+ {[%clk 0:00:17.3]} 37. Kf5 {[%clk 0:00:22.5]}
37... g6+ {[%clk 0:00:14.8]} 38. Kf4 {[%clk 0:00:22.2]} 38... Re4+ {[%clk
0:00:13.9]} 39. Kf3 {[%clk 0:00:21.4]} 39... Re3+ {[%clk 0:00:14.1]} 40. Kg2
{[%clk 0:00:20.4]} 40... Rxb3 {[%clk 0:00:14.6]} 41. Rf1 {[%clk 0:00:18.4]}
41... Re3 {[%clk 0:00:13.8]} 42. Ra8 {[%clk 0:00:17.4]} 42... Re7 {[%clk
0:00:13.5]} 43. Rh8 {[%clk 0:00:15.4]} 43... Kg7 {[%clk 0:00:13.1]} 44. Rd8
{[%clk 0:00:16.1]} 44... a5 {[%clk 0:00:12.9]} 45. Ra8 {[%clk 0:00:16]} 45...
Ne4 {[%clk 0:00:12.7]} 46. Rff8 {[%clk 0:00:14.6]} 46... Rf7 {[%clk 0:00:11.9]}
47. Rg8+ {[%clk 0:00:14.1]} 47... Kf6 {[%clk 0:00:12.3]} 48. Rge8 {[%clk
0:00:12.8]} 48... Nd6 {[%clk 0:00:12.6]} 49. Re1 {[%clk 0:00:12.3]} 49... Re7
{[%clk 0:00:13]} 50. Rf1+ {[%clk 0:00:08.9]} 50... Kg5 {[%clk 0:00:13.4]} 51.
Raf8 {[%clk 0:00:07.4]} 51... Nf5 {[%clk 0:00:13.4]} 52. Rd8 {[%clk 0:00:06.2]}
52... Ne3+ {[%clk 0:00:13]} 53. Kg1 {[%clk 0:00:05.4]} 53... Nxf1+ {[%clk
0:00:13.9]} 54. Kxf1 {[%clk 0:00:06.3]} 54... h5 {[%clk 0:00:13.3]} 55. Kg2
{[%clk 0:00:06.5]} 55... Re2+ {[%clk 0:00:12.5]} 56. Kf3 {[%clk 0:00:06.3]}
56... Re3+ {[%clk 0:00:12.6]} 57. Kg2 {[%clk 0:00:06.6]} 57... Kg4 {[%clk
0:00:13]} 58. Rd5 {[%clk 0:00:03.9]} 58... Re2+ {[%clk 0:00:13.1]} 59. Kh1
{[%clk 0:00:04]} 59... Kxg3 {[%clk 0:00:12.6]} 60. Rg5+ {[%clk 0:00:03.3]} 60...
Kf4 {[%clk 0:00:11.5]} 61. Rf5+ {[%clk 0:00:03.5]} 61... Ke4 {[%clk 0:00:11.7]}
62. Re5+ {[%clk 0:00:03.6]} 62... Kd3 {[%clk 0:00:11.8]} 0-1